[Event "Titled Tuesday Blitz January 03 Early 2023"]
[White "Leschinsky, Gary"]
[Black "Borrmann, Laurenz"]
[WhiteFideId "30951321"]
[BlackFideId "312187930"]
[WhiteElo "1969"]
[BlackElo "2304"]
[Result "1-0"]
[Round "06"]
[TimeControl "180+2"]
[Date "2023.01.03"]
[WhiteClock "0:01:17"]
[BlackClock "0:00:01"]

1. d4 {[%clk 0:03:00]}  Nf6 {[%clk 0:02:55]} 2. c4 {[%clk 0:03:01]}  g6 {[%clk 0:02:55]} 3. Nc3 {[%clk 0:03:02]}  Bg7 {[%clk 0:02:55]} 4. e4 {[%clk 0:03:02]}  d6 {[%clk 0:02:53]} 5. h3 {[%clk 0:03:00]}  e5 {[%clk 0:02:41]} 6. d5 {[%clk 0:02:48]}  Nbd7 {[%clk 0:02:39]} 7. Be3 {[%clk 0:02:42]}  Nc5 {[%clk 0:02:32]} 8. Bd3 {[%clk 0:02:39]}  Nh5 {[%clk 0:01:56]} 9. Nf3 {[%clk 0:02:34]}  O-O {[%clk 0:01:50]} 10. g3 {[%clk 0:02:19]}  f5 {[%clk 0:01:37]} 11. exf5 {[%clk 0:02:18]}  Nxd3+ {[%clk 0:01:33]} 12. Qxd3 {[%clk 0:02:15]}  gxf5 {[%clk 0:01:26]} 13. Nh4 {[%clk 0:02:07]}  f4 {[%clk 0:01:09]} 14. Bd2 {[%clk 0:02:01]}  fxg3 {[%clk 0:00:49]} 15. fxg3 {[%clk 0:01:59]}  Bf6 {[%clk 0:00:49]} 16. O-O-O {[%clk 0:01:55]}  Bxh4 {[%clk 0:00:49]} 17. gxh4 {[%clk 0:01:56]}  Qxh4 {[%clk 0:00:47]} 18. Rdg1+ {[%clk 0:01:56]}  Kh8 {[%clk 0:00:47]} 19. Bg5 {[%clk 0:01:54]}  Qd4 {[%clk 0:00:41]} 20. Qxd4 {[%clk 0:01:54]}  exd4 {[%clk 0:00:42]} 21. Nb5 {[%clk 0:01:54]}  Bf5 {[%clk 0:00:31]} 22. Nxc7 {[%clk 0:01:52]}  Rac8 {[%clk 0:00:30]} 23. Ne6 {[%clk 0:01:46]}  Rxc4+ {[%clk 0:00:27]} 24. Kd1 {[%clk 0:01:46]}  Re8 {[%clk 0:00:15]} 25. Bd2 {[%clk 0:01:39]}  Bxe6 {[%clk 0:00:14]} 26. dxe6 {[%clk 0:01:40]}  Rxe6 {[%clk 0:00:13]} 27. Rg5 {[%clk 0:01:39]}  Nf6 {[%clk 0:00:13]} 28. Rf5 {[%clk 0:01:34]}  Rc8 {[%clk 0:00:11]} 29. Rhf1 {[%clk 0:01:33]}  Ne4 {[%clk 0:00:10]} 30. Bf4 {[%clk 0:01:26]}  d5 {[%clk 0:00:07]} 31. Rxd5 {[%clk 0:01:25]}  Nf6 {[%clk 0:00:03]} 32. Be5 {[%clk 0:01:24]}  Kg7 {[%clk 0:00:01]} 33. Rd7+ {[%clk 0:01:21]}  Kg6 {[%clk 0:00:01]} 34. Bxf6 {[%clk 0:01:21]}  Rxf6 {[%clk 0:00:01]} 35. Rxf6+ {[%clk 0:01:21]}  Kxf6 {[%clk 0:00:02]} 36. Rxb7 {[%clk 0:01:21]}  Kg6 {[%clk 0:00:01]} 37. Rxa7 {[%clk 0:01:21]}  Rf8 {[%clk 0:00:01]} 38. Rd7 {[%clk 0:01:21]}  Rf2 {[%clk 0:00:01]} 39. Kc1 {[%clk 0:01:17]} 1-0


[Site "https://www.chess.com"]

[Event "Titled Tuesday Blitz January 03 Early 2023"]
[White "Erzhanov, Arman"]
[Black "Lacasa Diaz, Jose Antonio"]
[WhiteFideId "4138821"]
[BlackFideId "2203375"]
[WhiteElo "2228"]
[BlackElo "2359"]
[Result "1-0"]
[Round "06"]
[TimeControl "180+2"]
[Date "2023.01.03"]
[WhiteClock "0:01:11"]
[BlackClock "0:00:20"]

1. e4 {[%clk 0:02:56]}  c5 {[%clk 0:02:46]} 2. Nf3 {[%clk 0:02:54]}  d6 {[%clk 0:02:47]} 3. Bb5+ {[%clk 0:02:51]}  Bd7 {[%clk 0:02:46]} 4. Bxd7+ {[%clk 0:02:41]}  Qxd7 {[%clk 0:02:47]} 5. O-O {[%clk 0:02:41]}  Nc6 {[%clk 0:02:44]} 6. d4 {[%clk 0:02:42]}  cxd4 {[%clk 0:02:43]} 7. Nxd4 {[%clk 0:02:42]}  Nf6 {[%clk 0:02:44]} 8. Re1 {[%clk 0:02:42]}  g6 {[%clk 0:02:44]} 9. c4 {[%clk 0:02:42]}  Bg7 {[%clk 0:02:39]} 10. Nc3 {[%clk 0:02:37]}  O-O {[%clk 0:02:36]} 11. Nde2 {[%clk 0:02:35]}  Rfc8 {[%clk 0:02:26]} 12. f3 {[%clk 0:02:34]}  a6 {[%clk 0:02:23]} 13. Be3 {[%clk 0:02:26]}  Rab8 {[%clk 0:02:22]} 14. Rc1 {[%clk 0:02:17]}  b5 {[%clk 0:02:21]} 15. cxb5 {[%clk 0:02:15]}  axb5 {[%clk 0:02:22]} 16. b3 {[%clk 0:02:15]}  b4 {[%clk 0:02:17]} 17. Nd5 {[%clk 0:02:13]}  Nxd5 {[%clk 0:02:14]} 18. Qxd5 {[%clk 0:02:13]}  e6 {[%clk 0:02:03]} 19. Qd2 {[%clk 0:02:06]}  Ra8 {[%clk 0:01:56]} 20. Red1 {[%clk 0:02:01]}  Qb7 {[%clk 0:01:50]} 21. Rc2 {[%clk 0:01:56]}  Be5 {[%clk 0:01:39]} 22. Rdc1 {[%clk 0:01:55]}  h5 {[%clk 0:01:18]} 23. Bf4 {[%clk 0:01:32]}  Bxf4 {[%clk 0:01:09]} 24. Qxf4 {[%clk 0:01:30]}  Ne5 {[%clk 0:01:07]} 25. Qd2 {[%clk 0:01:28]}  Rxc2 {[%clk 0:01:01]} 26. Rxc2 {[%clk 0:01:27]}  Qb6+ {[%clk 0:01:01]} 27. Qd4 {[%clk 0:01:24]}  Qxd4+ {[%clk 0:00:51]} 28. Nxd4 {[%clk 0:01:25]}  Ra5 {[%clk 0:00:37]} 29. Kf2 {[%clk 0:01:21]}  Rc5 {[%clk 0:00:34]} 30. Ke2 {[%clk 0:01:22]}  Rxc2+ {[%clk 0:00:29]} 31. Nxc2 {[%clk 0:01:22]}  Nc6 {[%clk 0:00:29]} 32. Kd3 {[%clk 0:01:22]}  h4 {[%clk 0:00:18]} 33. Kc4 {[%clk 0:01:18]}  h3 {[%clk 0:00:19]} 34. gxh3 {[%clk 0:01:11]}  Ne5+ {[%clk 0:00:19]} 35. Kxb4 {[%clk 0:01:10]}  Nxf3 {[%clk 0:00:20]} 36. a4 {[%clk 0:01:10]}  Kf8 {[%clk 0:00:20]} 37. a5 {[%clk 0:01:11]}  Ke8 {[%clk 0:00:20]} 38. a6 {[%clk 0:01:11]}  Ne5 {[%clk 0:00:20]} 39. Kb5 {[%clk 0:01:11]} 1-0


[Site "https://www.chess.com"]

[Event "Titled Tuesday Blitz January 03 Early 2023"]
[White "Md, Imran"]
[Black "Garv Gaur"]
[WhiteFideId "25748580"]
[BlackFideId "45030839"]
[WhiteElo "2284"]
[BlackElo "2006"]
[Result "1-0"]
[Round "06"]
[TimeControl "180+2"]
[Date "2023.01.03"]
[WhiteClock "0:00:28"]
[BlackClock "0:00:05"]

1. e4 {[%clk 0:03:00]}  c6 {[%clk 0:02:59]} 2. d4 {[%clk 0:02:46]}  d5 {[%clk 0:03:00]} 3. e5 {[%clk 0:02:36]}  Bf5 {[%clk 0:03:00]} 4. Nc3 {[%clk 0:02:32]}  e6 {[%clk 0:03:00]} 5. h4 {[%clk 0:02:31]}  h6 {[%clk 0:02:52]} 6. g4 {[%clk 0:02:30]}  Bh7 {[%clk 0:02:52]} 7. Nh3 {[%clk 0:02:27]}  Nd7 {[%clk 0:02:51]} 8. f4 {[%clk 0:02:23]}  c5 {[%clk 0:02:51]} 9. Be3 {[%clk 0:02:22]}  Qb6 {[%clk 0:02:50]} 10. Qd2 {[%clk 0:02:19]}  cxd4 {[%clk 0:02:46]} 11. Bxd4 {[%clk 0:02:17]}  Bc5 {[%clk 0:02:45]} 12. Na4 {[%clk 0:02:15]}  Qc6 {[%clk 0:02:43]} 13. Nxc5 {[%clk 0:02:08]}  Nxc5 {[%clk 0:02:44]} 14. Nf2 {[%clk 0:02:03]}  a6 {[%clk 0:02:37]} 15. Bd3 {[%clk 0:01:57]}  Nxd3+ {[%clk 0:02:28]} 16. cxd3 {[%clk 0:01:55]}  Ne7 {[%clk 0:02:26]} 17. Rc1 {[%clk 0:01:55]}  Qd7 {[%clk 0:02:23]} 18. h5 {[%clk 0:01:52]}  Nc6 {[%clk 0:02:23]} 19. Bc5 {[%clk 0:01:51]}  d4 {[%clk 0:02:22]} 20. O-O {[%clk 0:01:49]}  f6 {[%clk 0:02:12]} 21. Bd6 {[%clk 0:01:47]}  Kf7 {[%clk 0:02:12]} 22. b4 {[%clk 0:01:47]}  Rhc8 {[%clk 0:02:11]} 23. a4 {[%clk 0:01:47]}  Ne7 {[%clk 0:02:06]} 24. Qb2 {[%clk 0:01:38]}  Qxa4 {[%clk 0:01:39]} 25. Qxd4 {[%clk 0:01:37]}  Nc6 {[%clk 0:01:28]} 26. Qb6 {[%clk 0:01:23]}  Qb5 {[%clk 0:01:28]} 27. Qe3 {[%clk 0:01:22]}  fxe5 {[%clk 0:01:11]} 28. fxe5 {[%clk 0:01:21]}  Kg8 {[%clk 0:01:11]} 29. g5 {[%clk 0:01:15]}  Nxb4 {[%clk 0:01:01]} 30. g6 {[%clk 0:01:11]}  Bxg6 {[%clk 0:00:57]} 31. hxg6 {[%clk 0:01:12]}  Nd5 {[%clk 0:00:53]} 32. Qf3 {[%clk 0:01:12]}  Qd7 {[%clk 0:00:50]} 33. Ne4 {[%clk 0:01:10]}  Qd8 {[%clk 0:00:37]} 34. Qf7+ {[%clk 0:01:09]}  Kh8 {[%clk 0:00:36]} 35. Nf6 {[%clk 0:00:56]}  Rxc1 {[%clk 0:00:31]} 36. Rxc1 {[%clk 0:00:51]}  Qb6+ {[%clk 0:00:31]} 37. Bc5 {[%clk 0:00:42]}  Qb2 {[%clk 0:00:30]} 38. Rf1 {[%clk 0:00:41]}  Qxe5 {[%clk 0:00:26]} 39. Ne4 {[%clk 0:00:32]}  Nf6 {[%clk 0:00:24]} 40. Rxf6 {[%clk 0:00:30]}  Qb8 {[%clk 0:00:05]} 41. Bf8 {[%clk 0:00:28]} 1-0


[Site "https://www.chess.com"]

[Event "Titled Tuesday Blitz January 03 Early 2023"]
[White "Zaichenko, Daria"]
[Black "Tran, Thanh Tu"]
[WhiteFideId "4197453"]
[BlackFideId "12401404"]
[WhiteElo "2104"]
[BlackElo "2412"]
[Result "0-1"]
[Round "06"]
[TimeControl "180+2"]
[Date "2023.01.03"]
[WhiteClock "0:00:02"]
[BlackClock "0:00:21"]

1. e4 {[%clk 0:02:59]}  Nc6 {[%clk 0:02:59]} 2. d4 {[%clk 0:02:57]}  d6 {[%clk 0:03:00]} 3. f4 {[%clk 0:02:55]}  Nf6 {[%clk 0:03:00]} 4. Nc3 {[%clk 0:02:52]}  e5 {[%clk 0:03:00]} 5. d5 {[%clk 0:02:40]}  Ne7 {[%clk 0:02:57]} 6. Nf3 {[%clk 0:02:38]}  exf4 {[%clk 0:02:54]} 7. Bxf4 {[%clk 0:02:36]}  Ng6 {[%clk 0:02:55]} 8. Be3 {[%clk 0:02:32]}  Ng4 {[%clk 0:02:53]} 9. Bd4 {[%clk 0:02:31]}  N4e5 {[%clk 0:02:49]} 10. Be2 {[%clk 0:02:24]}  Be7 {[%clk 0:02:43]} 11. Qd2 {[%clk 0:02:23]}  Nxf3+ {[%clk 0:02:25]} 12. Bxf3 {[%clk 0:02:20]}  Bg5 {[%clk 0:02:23]} 13. Qf2 {[%clk 0:02:16]}  O-O {[%clk 0:02:20]} 14. O-O {[%clk 0:02:15]}  Ne5 {[%clk 0:02:10]} 15. Bxe5 {[%clk 0:02:07]}  dxe5 {[%clk 0:02:11]} 16. Be2 {[%clk 0:02:03]}  a6 {[%clk 0:02:05]} 17. Bc4 {[%clk 0:01:52]}  Qd6 {[%clk 0:02:04]} 18. Kh1 {[%clk 0:01:45]}  Bd7 {[%clk 0:02:01]} 19. Ne2 {[%clk 0:01:37]}  g6 {[%clk 0:01:57]} 20. Bd3 {[%clk 0:01:25]}  b5 {[%clk 0:01:51]} 21. Rad1 {[%clk 0:01:15]}  Kg7 {[%clk 0:01:47]} 22. c4 {[%clk 0:01:14]}  bxc4 {[%clk 0:01:44]} 23. Bxc4 {[%clk 0:01:14]}  h5 {[%clk 0:01:25]} 24. Qg3 {[%clk 0:01:13]}  f6 {[%clk 0:01:18]} 25. h4 {[%clk 0:01:04]}  Bh6 {[%clk 0:01:17]} 26. Nc3 {[%clk 0:00:45]}  Bf4 {[%clk 0:01:09]} 27. Qf2 {[%clk 0:00:45]}  Rab8 {[%clk 0:00:39]} 28. b3 {[%clk 0:00:42]}  a5 {[%clk 0:00:38]} 29. Ne2 {[%clk 0:00:36]}  Bh6 {[%clk 0:00:37]} 30. Ng3 {[%clk 0:00:31]}  a4 {[%clk 0:00:32]} 31. Rb1 {[%clk 0:00:25]}  axb3 {[%clk 0:00:29]} 32. Rxb3 {[%clk 0:00:24]}  Ra8 {[%clk 0:00:27]} 33. Rf3 {[%clk 0:00:19]}  Ra4 {[%clk 0:00:23]} 34. Bb3 {[%clk 0:00:15]}  Rd4 {[%clk 0:00:23]} 35. Ne2 {[%clk 0:00:12]}  Rxe4 {[%clk 0:00:23]} 36. Bc2 {[%clk 0:00:11]}  Rg4 {[%clk 0:00:23]} 37. g3 {[%clk 0:00:04]}  e4 {[%clk 0:00:22]} 38. Rf4 {[%clk 0:00:03]}  Bxf4 {[%clk 0:00:22]} 39. Nxf4 {[%clk 0:00:04]}  f5 {[%clk 0:00:21]} 40. Qd4+ {[%clk 0:00:03]}  Kh7 {[%clk 0:00:21]} 41. Rb1 {[%clk 0:00:02]}  Rxg3 {[%clk 0:00:21]} 0-1


[Site "https://www.chess.com"]

[Event "Titled Tuesday Blitz January 03 Early 2023"]
[White "Vifleemskaia, Svetlana"]
[Black "Fisher_TheGalactic"]
[WhiteFideId "4129490"]
[WhiteElo "1971"]
[BlackElo "2521"]
[Result "0-1"]
[Round "06"]
[TimeControl "180+2"]
[Date "2023.01.03"]
[WhiteClock "0:00:04"]
[BlackClock "0:00:54"]

1. d4 {[%clk 0:03:00]}  b6 {[%clk 0:02:58]} 2. c4 {[%clk 0:03:00]}  Bb7 {[%clk 0:02:58]} 3. Nc3 {[%clk 0:03:00]}  e6 {[%clk 0:02:57]} 4. a3 {[%clk 0:02:56]}  Nf6 {[%clk 0:02:57]} 5. d5 {[%clk 0:02:56]}  exd5 {[%clk 0:02:57]} 6. cxd5 {[%clk 0:02:57]}  Be7 {[%clk 0:02:56]} 7. e4 {[%clk 0:02:57]}  d6 {[%clk 0:02:56]} 8. Nge2 {[%clk 0:02:56]}  O-O {[%clk 0:02:56]} 9. Nd4 {[%clk 0:02:56]}  Re8 {[%clk 0:02:54]} 10. Bd3 {[%clk 0:02:55]}  Nbd7 {[%clk 0:02:54]} 11. O-O {[%clk 0:02:54]}  Bf8 {[%clk 0:02:53]} 12. b4 {[%clk 0:02:49]}  a5 {[%clk 0:02:51]} 13. Bb2 {[%clk 0:02:42]}  Ne5 {[%clk 0:02:50]} 14. Bb5 {[%clk 0:02:36]}  Ned7 {[%clk 0:02:46]} 15. Re1 {[%clk 0:02:33]}  g6 {[%clk 0:02:20]} 16. h3 {[%clk 0:02:27]}  Bg7 {[%clk 0:02:21]} 17. Nc6 {[%clk 0:02:12]}  Bxc6 {[%clk 0:02:16]} 18. Bxc6 {[%clk 0:02:11]}  Rb8 {[%clk 0:02:16]} 19. Rc1 {[%clk 0:01:46]}  Nxe4 {[%clk 0:02:06]} 20. Nxe4 {[%clk 0:01:32]}  Bxb2 {[%clk 0:02:05]} 21. Rc2 {[%clk 0:01:32]}  Bg7 {[%clk 0:02:04]} 22. Qc1 {[%clk 0:01:17]}  f5 {[%clk 0:01:55]} 23. Ng5 {[%clk 0:01:14]}  Rxe1+ {[%clk 0:01:54]} 24. Qxe1 {[%clk 0:01:12]}  Qxg5 {[%clk 0:01:52]} 25. Bxd7 {[%clk 0:01:12]}  Qd8 {[%clk 0:01:45]} 26. Qe6+ {[%clk 0:01:07]}  Kh8 {[%clk 0:01:44]} 27. Re2 {[%clk 0:01:03]}  axb4 {[%clk 0:01:37]} 28. axb4 {[%clk 0:01:02]}  Ra8 {[%clk 0:01:35]} 29. Bc6 {[%clk 0:00:57]}  Ra1+ {[%clk 0:01:31]} 30. Kh2 {[%clk 0:00:57]}  Qf8 {[%clk 0:01:11]} 31. Qd7 {[%clk 0:00:48]}  Be5+ {[%clk 0:01:00]} 32. g3 {[%clk 0:00:48]}  f4 {[%clk 0:00:59]} 33. Rxe5 {[%clk 0:00:11]}  fxg3+ {[%clk 0:00:56]} 34. Kxg3 {[%clk 0:00:10]}  Rg1+ {[%clk 0:00:55]} 35. Kh4 {[%clk 0:00:05]}  Qh6+ {[%clk 0:00:54]} 36. Rh5 {[%clk 0:00:04]}  Qxh5# {[%clk 0:00:54]} 0-1


[Site "https://www.chess.com"]

[Event "Titled Tuesday Blitz January 03 Early 2023"]
[White "Viskelis, Darius"]
[Black "Carlstedt, Jonathan"]
[WhiteFideId "12800830"]
[BlackFideId "24614386"]
[WhiteElo "2166"]
[BlackElo "2441"]
[Result "1-0"]
[Round "06"]
[TimeControl "180+2"]
[Date "2023.01.03"]
[WhiteClock "0:00:05"]
[BlackClock "0:00:31"]

1. e4 {[%clk 0:03:00]}  c5 {[%clk 0:02:57]} 2. Nf3 {[%clk 0:02:58]}  Nc6 {[%clk 0:02:56]} 3. Bb5 {[%clk 0:02:58]}  d6 {[%clk 0:02:49]} 4. O-O {[%clk 0:02:57]}  e5 {[%clk 0:02:49]} 5. c3 {[%clk 0:02:56]}  f5 {[%clk 0:02:48]} 6. d4 {[%clk 0:02:40]}  fxe4 {[%clk 0:02:47]} 7. Ng5 {[%clk 0:02:39]}  Be7 {[%clk 0:02:41]} 8. Nxe4 {[%clk 0:02:29]}  cxd4 {[%clk 0:02:40]} 9. cxd4 {[%clk 0:02:27]}  d5 {[%clk 0:02:39]} 10. Qh5+ {[%clk 0:01:41]}  Kf8 {[%clk 0:02:30]} 11. Bxc6 {[%clk 0:01:32]}  bxc6 {[%clk 0:02:28]} 12. Qf3+ {[%clk 0:01:31]}  Ke8 {[%clk 0:02:14]} 13. Qh5+ {[%clk 0:01:28]}  Kd7 {[%clk 0:02:05]} 14. Qf5+ {[%clk 0:01:14]}  Kc7 {[%clk 0:01:47]} 15. Qxe5+ {[%clk 0:01:13]}  Kb7 {[%clk 0:01:47]} 16. Nc5+ {[%clk 0:01:11]}  Bxc5 {[%clk 0:01:47]} 17. Qxg7+ {[%clk 0:01:05]}  Be7 {[%clk 0:01:32]} 18. Qxh8 {[%clk 0:01:03]}  Bf5 {[%clk 0:01:32]} 19. Qe5 {[%clk 0:00:58]}  Qd7 {[%clk 0:01:32]} 20. Nc3 {[%clk 0:00:55]}  Bd6 {[%clk 0:01:30]} 21. Qe2 {[%clk 0:00:50]}  Nf6 {[%clk 0:01:29]} 22. Be3 {[%clk 0:00:46]}  Rg8 {[%clk 0:01:26]} 23. Rfe1 {[%clk 0:00:39]}  Bg4 {[%clk 0:01:15]} 24. f3 {[%clk 0:00:36]}  Bh3 {[%clk 0:01:15]} 25. g3 {[%clk 0:00:32]}  Bxg3 {[%clk 0:01:14]} 26. hxg3 {[%clk 0:00:31]}  Rxg3+ {[%clk 0:01:15]} 27. Kh2 {[%clk 0:00:23]}  Qd6 {[%clk 0:01:14]} 28. f4 {[%clk 0:00:22]}  Rxe3 {[%clk 0:01:11]} 29. Qxe3 {[%clk 0:00:15]}  Ng4+ {[%clk 0:01:11]} 30. Kxh3 {[%clk 0:00:15]}  Nxe3 {[%clk 0:01:10]} 31. Rxe3 {[%clk 0:00:15]}  Qxf4 {[%clk 0:01:10]} 32. Rae1 {[%clk 0:00:16]}  Qxd4 {[%clk 0:01:09]} 33. Re7+ {[%clk 0:00:15]}  Ka6 {[%clk 0:01:09]} 34. R1e3 {[%clk 0:00:14]}  Qf6 {[%clk 0:01:03]} 35. R7e6 {[%clk 0:00:12]}  Qf5+ {[%clk 0:01:02]} 36. Kg3 {[%clk 0:00:11]}  Qg5+ {[%clk 0:01:00]} 37. Kf2 {[%clk 0:00:09]}  Kb6 {[%clk 0:01:00]} 38. b3 {[%clk 0:00:08]}  d4 {[%clk 0:00:59]} 39. Na4+ {[%clk 0:00:08]}  Kb7 {[%clk 0:00:52]} 40. R3e5 {[%clk 0:00:08]}  Qf4+ {[%clk 0:00:50]} 41. Ke2 {[%clk 0:00:08]}  h5 {[%clk 0:00:35]} 42. Kd3 {[%clk 0:00:07]}  h4 {[%clk 0:00:35]} 43. Re7+ {[%clk 0:00:07]}  Ka6 {[%clk 0:00:35]} 44. Nc5+ {[%clk 0:00:06]}  Kb6 {[%clk 0:00:34]} 45. Rb7+ {[%clk 0:00:05]}  Ka5 {[%clk 0:00:31]} 46. b4# {[%clk 0:00:05]} 1-0


[Site "https://www.chess.com"]

[Event "Titled Tuesday Blitz January 03 Early 2023"]
[White "Slovineanu"]
[Black "Gheorghiu, Calin"]
[BlackFideId "1200305"]
[WhiteElo "2294"]
[BlackElo "2313"]
[Result "0-1"]
[Round "06"]
[TimeControl "180+2"]
[Date "2023.01.03"]
[WhiteClock "0:00:05"]
[BlackClock "0:00:04"]

1. e4 {[%clk 0:03:00]}  c6 {[%clk 0:02:59]} 2. d4 {[%clk 0:02:59]}  g6 {[%clk 0:02:59]} 3. f4 {[%clk 0:02:58]}  d5 {[%clk 0:02:56]} 4. e5 {[%clk 0:02:57]}  h5 {[%clk 0:02:55]} 5. c3 {[%clk 0:02:57]}  Nh6 {[%clk 0:02:55]} 6. Be3 {[%clk 0:02:57]}  Bg4 {[%clk 0:02:54]} 7. Nf3 {[%clk 0:02:54]}  e6 {[%clk 0:02:53]} 8. Bf2 {[%clk 0:02:50]}  Nf5 {[%clk 0:02:47]} 9. h3 {[%clk 0:02:41]}  Bxf3 {[%clk 0:02:47]} 10. Qxf3 {[%clk 0:02:41]}  h4 {[%clk 0:02:48]} 11. Bd3 {[%clk 0:02:28]}  Be7 {[%clk 0:02:45]} 12. Nd2 {[%clk 0:02:27]}  Nd7 {[%clk 0:02:40]} 13. Nf1 {[%clk 0:02:27]}  c5 {[%clk 0:02:39]} 14. Ne3 {[%clk 0:02:21]}  cxd4 {[%clk 0:02:26]} 15. Nxf5 {[%clk 0:02:20]}  gxf5 {[%clk 0:02:26]} 16. Bxd4 {[%clk 0:02:17]}  Bc5 {[%clk 0:01:51]} 17. Bxc5 {[%clk 0:01:50]}  Nxc5 {[%clk 0:01:50]} 18. Bb5+ {[%clk 0:01:49]}  Kf8 {[%clk 0:01:44]} 19. O-O-O {[%clk 0:01:35]}  Qb6 {[%clk 0:01:39]} 20. Bd3 {[%clk 0:01:26]}  Rg8 {[%clk 0:01:28]} 21. Qh5 {[%clk 0:01:09]}  Rxg2 {[%clk 0:01:17]} 22. Bc2 {[%clk 0:00:57]}  Ke7 {[%clk 0:00:15]} 23. Qxh4+ {[%clk 0:00:55]}  Kd7 {[%clk 0:00:15]} 24. Qf6 {[%clk 0:00:49]}  Rag8 {[%clk 0:00:14]} 25. Qxf7+ {[%clk 0:00:39]}  Kc8 {[%clk 0:00:14]} 26. Rd2 {[%clk 0:00:34]}  R2g7 {[%clk 0:00:09]} 27. Qh5 {[%clk 0:00:30]}  Rg3 {[%clk 0:00:08]} 28. Qf7 {[%clk 0:00:21]}  a6 {[%clk 0:00:08]} 29. h4 {[%clk 0:00:18]}  Kb8 {[%clk 0:00:08]} 30. h5 {[%clk 0:00:18]}  R3g7 {[%clk 0:00:08]} 31. Qf6 {[%clk 0:00:17]}  Rg1+ {[%clk 0:00:07]} 32. Rxg1 {[%clk 0:00:15]}  Rxg1+ {[%clk 0:00:07]} 33. Rd1 {[%clk 0:00:16]}  Rg2 {[%clk 0:00:06]} 34. h6 {[%clk 0:00:11]}  Ka7 {[%clk 0:00:06]} 35. h7 {[%clk 0:00:11]}  Na4 {[%clk 0:00:07]} 36. b3 {[%clk 0:00:07]}  Qe3+ {[%clk 0:00:04]} 37. Kb1 {[%clk 0:00:05]}  Qxc3 {[%clk 0:00:04]} 0-1


[Site "https://www.chess.com"]

[Event "Titled Tuesday Blitz January 03 Early 2023"]
[White "Ankerst, Mihael"]
[Black "Ibadov, Dashgyn"]
[WhiteFideId "14602369"]
[BlackFideId "24107514"]
[WhiteElo "2370"]
[BlackElo "2391"]
[Result "1-0"]
[Round "06"]
[TimeControl "180+2"]
[Date "2023.01.03"]
[WhiteClock "0:01:56"]
[BlackClock "0:00:04"]

1. e4 {[%clk 0:03:00]}  e5 {[%clk 0:02:59]} 2. Nf3 {[%clk 0:02:57]}  Nc6 {[%clk 0:02:59]} 3. Nc3 {[%clk 0:02:58]}  Nf6 {[%clk 0:02:59]} 4. d4 {[%clk 0:02:58]}  exd4 {[%clk 0:03:00]} 5. Nxd4 {[%clk 0:02:58]}  Bb4 {[%clk 0:02:59]} 6. Nxc6 {[%clk 0:02:59]}  bxc6 {[%clk 0:03:00]} 7. Bd3 {[%clk 0:02:59]}  d5 {[%clk 0:03:01]} 8. exd5 {[%clk 0:03:00]}  cxd5 {[%clk 0:03:01]} 9. O-O {[%clk 0:03:00]}  O-O {[%clk 0:03:02]} 10. Bg5 {[%clk 0:03:00]}  c6 {[%clk 0:03:02]} 11. Ne2 {[%clk 0:03:01]}  h6 {[%clk 0:02:45]} 12. Bh4 {[%clk 0:02:58]}  Be7 {[%clk 0:02:42]} 13. Nd4 {[%clk 0:02:55]}  Bd7 {[%clk 0:02:36]} 14. Qf3 {[%clk 0:02:54]}  c5 {[%clk 0:02:32]} 15. Nf5 {[%clk 0:02:53]}  c4 {[%clk 0:02:25]} 16. Nxe7+ {[%clk 0:02:49]}  Qxe7 {[%clk 0:02:25]} 17. Rfe1 {[%clk 0:02:45]}  Qd6 {[%clk 0:02:23]} 18. Bxf6 {[%clk 0:02:40]}  Qxf6 {[%clk 0:02:07]} 19. Qxf6 {[%clk 0:02:31]}  gxf6 {[%clk 0:02:07]} 20. Bf1 {[%clk 0:02:31]}  Bf5 {[%clk 0:01:56]} 21. c3 {[%clk 0:02:29]}  Rab8 {[%clk 0:01:55]} 22. Re2 {[%clk 0:02:28]}  Rb5 {[%clk 0:01:34]} 23. Rd2 {[%clk 0:02:27]}  Rfb8 {[%clk 0:01:33]} 24. b4 {[%clk 0:02:27]}  a5 {[%clk 0:00:58]} 25. a4 {[%clk 0:02:26]}  R5b7 {[%clk 0:00:55]} 26. Rxd5 {[%clk 0:02:23]}  Be6 {[%clk 0:00:41]} 27. Rxa5 {[%clk 0:02:22]}  Rd7 {[%clk 0:00:42]} 28. Rc5 {[%clk 0:02:08]}  Rbd8 {[%clk 0:00:38]} 29. f3 {[%clk 0:01:57]}  Rd2 {[%clk 0:00:37]} 30. Bxc4 {[%clk 0:01:55]}  Rc2 {[%clk 0:00:29]} 31. Bf1 {[%clk 0:01:55]}  Rdd2 {[%clk 0:00:13]} 32. a5 {[%clk 0:01:55]}  Kf8 {[%clk 0:00:02]} 33. a6 {[%clk 0:01:55]}  Ra2 {[%clk 0:00:03]} 34. Rxa2 {[%clk 0:01:55]}  Rxa2 {[%clk 0:00:04]} 35. b5 {[%clk 0:01:56]} 1-0


[Site "https://www.chess.com"]

[Event "Titled Tuesday Blitz January 03 Early 2023"]
[White "Makhmudov, Shukhrat"]
[Black "Kopczynski, Michal"]
[WhiteFideId "14200775"]
[BlackFideId "1124200"]
[WhiteElo "2115"]
[BlackElo "2225"]
[Result "0-1"]
[Round "06"]
[TimeControl "180+2"]
[Date "2023.01.03"]
[WhiteClock "0:00:16"]
[BlackClock "0:01:51"]

1. e4 {[%clk 0:03:00]}  b6 {[%clk 0:02:59]} 2. d4 {[%clk 0:03:00]}  Bb7 {[%clk 0:03:00]} 3. Nc3 {[%clk 0:03:01]}  e6 {[%clk 0:03:01]} 4. Nf3 {[%clk 0:03:00]}  Nf6 {[%clk 0:03:01]} 5. Bd3 {[%clk 0:03:00]}  d5 {[%clk 0:03:02]} 6. e5 {[%clk 0:03:00]}  Nfd7 {[%clk 0:03:03]} 7. Ne2 {[%clk 0:02:59]}  c5 {[%clk 0:03:03]} 8. c3 {[%clk 0:03:00]}  Nc6 {[%clk 0:03:03]} 9. O-O {[%clk 0:02:59]}  Qc7 {[%clk 0:03:04]} 10. a3 {[%clk 0:02:59]}  O-O-O {[%clk 0:03:04]} 11. b4 {[%clk 0:02:57]}  c4 {[%clk 0:03:04]} 12. Bc2 {[%clk 0:02:58]}  h6 {[%clk 0:03:05]} 13. a4 {[%clk 0:02:56]}  f5 {[%clk 0:03:05]} 14. a5 {[%clk 0:02:57]}  b5 {[%clk 0:03:04]} 15. a6 {[%clk 0:02:56]}  Ba8 {[%clk 0:03:05]} 16. Nf4 {[%clk 0:02:54]}  Re8 {[%clk 0:03:04]} 17. Ng6 {[%clk 0:02:53]}  Rg8 {[%clk 0:03:04]} 18. Nfh4 {[%clk 0:02:48]}  Ne7 {[%clk 0:03:01]} 19. Qh5 {[%clk 0:02:33]}  Nxg6 {[%clk 0:03:00]} 20. Nxg6 {[%clk 0:02:31]}  Be7 {[%clk 0:02:57]} 21. Ra5 {[%clk 0:02:21]}  Bc6 {[%clk 0:02:55]} 22. h4 {[%clk 0:02:14]}  Bd8 {[%clk 0:02:56]} 23. f4 {[%clk 0:02:10]}  Nf8 {[%clk 0:02:54]} 24. Nxf8 {[%clk 0:02:03]}  Rexf8 {[%clk 0:02:55]} 25. Qg6 {[%clk 0:02:01]}  Qe7 {[%clk 0:02:52]} 26. Bd1 {[%clk 0:01:39]}  Be8 {[%clk 0:02:50]} 27. Qg3 {[%clk 0:01:37]}  Bxa5 {[%clk 0:02:45]} 28. bxa5 {[%clk 0:01:37]}  g5 {[%clk 0:02:33]} 29. fxg5 {[%clk 0:01:34]}  hxg5 {[%clk 0:02:34]} 30. Bxg5 {[%clk 0:01:34]}  Qa3 {[%clk 0:02:33]} 31. Qe3 {[%clk 0:01:16]}  Rf7 {[%clk 0:02:20]} 32. Bf6 {[%clk 0:01:03]}  b4 {[%clk 0:02:18]} 33. Qh6 {[%clk 0:00:40]}  bxc3 {[%clk 0:02:08]} 34. Bg5 {[%clk 0:00:39]}  Bd7 {[%clk 0:02:02]} 35. Bh5 {[%clk 0:00:27]}  Rff8 {[%clk 0:02:02]} 36. Rb1 {[%clk 0:00:24]}  c2 {[%clk 0:01:53]} 37. Rb7 {[%clk 0:00:24]}  Rxg5 {[%clk 0:01:52]} 38. hxg5 {[%clk 0:00:17]}  c1=Q+ {[%clk 0:01:52]} 39. Kh2 {[%clk 0:00:18]}  Qf4+ {[%clk 0:01:51]} 40. g3 {[%clk 0:00:16]} 0-1


[Site "https://www.chess.com"]